Workbook

Sheet ФА EBITDA Группы
C1: Файл | D1: Предприятие | E1: Период | F1: План/ Факт | G1: Проверка | H1: Вычитаемое | I1: Уменьшаемое | J1: ВСЕГО | K1: Ценовой фактор | L1: Изменение цен реализации | M1: Изменение цен на сырье | N1: Изменение стоимости переменных затрат (кроме сырья) | O1: Объемный фактор | P1: Изменение объемов производства/ реализации | Q1: Изменение объемов потребления сырья | R1: Изменение объема переменных затрат (кроме сырья) | S1: Изменение структуры реализации | T1: Влияние налогового законодательства | U1: Оптимизац. меры бизнесов | V1: Измение условно-постоянных затрат | W1: Изменение суммы создания резервов | X1: Прочие доходы и расходы | Y1: Прочие доходы | Z1: Прочие расходы
A2: 1 квартал 2021 прогноз | B2: 1 квартал 2021 факт | C2: Предприятие 1.xlsm | D2: Предприятие 1 | E2: 1 квартал | F2: 2021пл/ф | J2: =SUM(K2,O2,T2:X2) -> 674 | K2: =SUM(L2:N2) -> 105 | L2: =RANDBETWEEN(10,100) -> 21 | M2: =RANDBETWEEN(10,100) -> 38 | N2: 46 | O2: =SUM(P2:S2) -> 166 | P2: =RANDBETWEEN(10,100) -> 62 | Q2: 52 | R2: 13 | S2: 39 | T2: 98 | U2: 42 | V2: 69 | W2: 93 | X2: =SUM(Y2:Z2) -> 101 | Y2: =RANDBETWEEN(10,100) -> 71 | Z2: 30
A3: 1 квартал 2020 факт | B3: 1 квартал 2021 факт | F3: 2020ф/2021ф | J3: 868 | K3: 212 | L3: =RANDBETWEEN(10,100) -> 62 | M3: 94 | N3: 56 | O3: 207 | P3: 11 | Q3: 77 | R3: 71 | S3: 48 | T3: 98 | U3: 79 | V3: 90 | W3: 73 | X3: 109 | Y3: 46 | Z3: 63
A4: 1 полугодие 2021 прогноз | B4: 1 полугодие 2021 факт | C4: Предприятие 1.xlsm | D4: Предприятие 1 | E4: 1 полугодие | F4: 2021пл/ф | J4: 709 | K4: 87 | L4: 12 | M4: 38 | N4: 37 | O4: 263 | P4: 65 | Q4: 75 | R4: 50 | S4: 73 | T4: 95 | U4: 72 | V4: 82 | W4: 37 | X4: 73 | Y4: 22 | Z4: 51
A5: 1 полугодие 2020 факт | B5: 1 полугодие 2021 факт | F5: 2020ф/2021ф | J5: 770 | K5: 256 | L5: 92 | M5: 66 | N5: 98 | O5: 162 | P5: 48 | Q5: 64 | R5: 35 | S5: 15 | T5: 20 | U5: 93 | V5: 78 | W5: 79 | X5: 82 | Y5: 67 | Z5: 15
A6: 9 месяцев 2021 прогноз | B6: 9 месяцев 2021 факт | C6: Предприятие 1.xlsm | D6: Предприятие 1 | E6: 9 месяцев | F6: 2021пл/ф | J6: 904 | K6: 234 | L6: 73 | M6: 65 | N6: 96 | O6: 230 | P6: 71 | Q6: 80 | R6: 48 | S6: 31 | T6: 91 | U6: 89 | V6: 49 | W6: 40 | X6: 171 | Y6: 96 | Z6: 75
A7: 9 месяцев 2020 факт | B7: 9 месяцев 2021 факт | F7: 2020ф/2021ф | J7: 856 | K7: 243 | L7: 86 | M7: 91 | N7: 66 | O7: 257 | P7: 98 | Q7: 83 | R7: 10 | S7: 66 | T7: 35 | U7: 13 | V7: 86 | W7: 70 | X7: 152 | Y7: 73 | Z7: 79
A8: 2021 прогноз | B8: 2021 факт | C8: Предприятие 1.xlsm | D8: Предприятие 1 | E8: 2021 год | F8: 2021пл/ф | J8: 711 | K8: 151 | L8: 40 | M8: 64 | N8: 47 | O8: 195 | P8: 95 | Q8: 59 | R8: 23 | S8: 18 | T8: 33 | U8: 70 | V8: 82 | W8: 45 | X8: 135 | Y8: 82 | Z8: 53
A9: 2020 факт | B9: 2021 факт | F9: 2020ф/2021ф | J9: 705 | K9: 174 | L9: 12 | M9: 76 | N9: 86 | O9: 286 | P9: 85 | Q9: 81 | R9: 27 | S9: 93 | T9: 69 | U9: 10 | V9: 13 | W9: 71 | X9: 82 | Y9: 57 | Z9: 25
A10: 1 квартал 2021 факт | B10: 1 квартал 2022 прогноз | C10: Предприятие 1.xlsm | D10: Предприятие 1 | E10: 1 квартал | F10: 2021ф/2022пл | J10: 554 | K10: 190 | L10: 38 | M10: 98 | N10: 54 | O10: 101 | P10: 36 | Q10: 13 | R10: 16 | S10: 36 | T10: 15 | U10: 16 | V10: 17 | W10: 92 | X10: 123 | Y10: 93 | Z10: 30
A11: 1 полугодие 2021 факт | B11: 1 полугодие 2022 прогноз | E11: 1 полугодие | F11: 2021ф/2022пл | J11: 863 | K11: 167 | L11: 76 | M11: 13 | N11: 78 | O11: 316 | P11: 81 | Q11: 75 | R11: 79 | S11: 81 | T11: 96 | U11: 69 | V11: 90 | W11: 64 | X11: 61 | Y11: 43 | Z11: 18
A12: 9 месяцев 2021 факт | B12: 9 месяцев 2022 прогноз | C12: Предприятие 1.xlsm | D12: Предприятие 1 | E12: 9 месяцев | F12: 2021ф/2022пл | J12: 724 | K12: 164 | L12: 35 | M12: 76 | N12: 53 | O12: 237 | P12: 35 | Q12: 16 | R12: 92 | S12: 94 | T12: 42 | U12: 68 | V12: 60 | W12: 36 | X12: 117 | Y12: 53 | Z12: 64
A13: 2021 факт | B13: 2022 прогноз | E13: 2022 год | F13: 2021ф/2022пл | J13: 926 | K13: 239 | L13: 75 | M13: 98 | N13: 66 | O13: 182 | P13: 27 | Q13: 76 | R13: 53 | S13: 26 | T13: 93 | U13: 81 | V13: 99 | W13: 80 | X13: 152 | Y13: 73 | Z13: 79
A14: 1 квартал 2022 прогноз | B14: 1 квартал 2022 факт | C14: Предприятие 1.xlsm | D14: Предприятие 1 | E14: 1 квартал | F14: 2022пл/ф | J14: 864 | K14: =SUM(L14:N14) -> 152 | L14: 46 | M14: 84 | N14: 22 | O14: =SUM(P14:S14) -> 294 | P14: 97 | Q14: 75 | R14: 77 | S14: 45 | T14: 95 | U14: 76 | V14: 100 | W14: 54 | X14: =SUM(Y14:Z14) -> 93 | Y14: 30 | Z14: 63
A15: 1 квартал 2021 факт | B15: 1 квартал 2022 факт | F15: 2021ф/2022ф | J15: 779 | K15: 188 | L15: 81 | M15: 66 | N15: 41 | O15: 199 | P15: 14 | Q15: 24 | R15: 83 | S15: 78 | T15: 60 | U15: 46 | V15: 53 | W15: 94 | X15: 139 | Y15: 47 | Z15: 92
A16: 1 полугодие 2022 прогноз | B16: 1 полугодие 2022 факт | C16: Предприятие 1.xlsm | D16: Предприятие 1 | E16: 1 полугодие | F16: 2022пл/ф | J16: 811 | K16: 196 | L16: 64 | M16: 71 | N16: 61 | O16: 210 | P16: 74 | Q16: 43 | R16: 57 | S16: 36 | T16: 83 | U16: 90 | V16: 83 | W16: 23 | X16: 126 | Y16: 57 | Z16: 69
A17: 1 полугодие 2021 факт | B17: 1 полугодие 2022 факт | F17: 2021ф/2022ф | J17: 813 | K17: 159 | L17: 30 | M17: 86 | N17: 43 | O17: 304 | P17: 82 | Q17: 88 | R17: 81 | S17: 53 | T17: 78 | U17: 25 | V17: 89 | W17: 33 | X17: 125 | Y17: 85 | Z17: 40
A18: 9 месяцев 2022 прогноз | B18: 9 месяцев 2022 факт | C18: Предприятие 1.xlsm | D18: Предприятие 1 | E18: 9 месяцев | F18: 2022пл/ф | J18: 830 | K18: 136 | L18: 91 | M18: 14 | N18: 31 | O18: 218 | P18: =RANDBETWEEN(10,100) -> 88 | Q18: 34 | R18: 10 | S18: 86 | T18: 90 | U18: 72 | V18: 97 | W18: 99 | X18: 118 | Y18: 31 | Z18: 87
A19: 9 месяцев 2021 факт | B19: 9 месяцев 2022 факт | F19: 2021ф/2022ф | J19: 640 | K19: 99 | L19: 22 | M19: 15 | N19: 62 | O19: 213 | P19: 88 | Q19: 74 | R19: 30 | S19: 21 | T19: 52 | U19: 29 | V19: 10 | W19: 69 | X19: 168 | Y19: 90 | Z19: 78
A20: 2022 прогноз | B20: 2022 факт | C20: Предприятие 1.xlsm | D20: Предприятие 1 | E20: 2022 год | F20: 2022пл/ф | J20: 774 | K20: 126 | L20: 22 | M20: 42 | N20: 62 | O20: 274 | P20: 97 | Q20: 83 | R20: 50 | S20: 44 | T20: 74 | U20: 67 | V20: 44 | W20: 61 | X20: 128 | Y20: 63 | Z20: 65
A21: 2021 факт | B21: 2022 факт | F21: 2021ф/2022ф | J21: 717 | K21: 200 | L21: 79 | M21: 90 | N21: 31 | O21: 218 | P21: 25 | Q21: 63 | R21: 96 | S21: 34 | T21: 14 | U21: 82 | V21: 35 | W21: 90 | X21: 78 | Y21: 11 | Z21: 67
A22: 1 квартал 2021 прогноз | B22: 1 квартал 2021 факт | C22: Предприятие 2.xlsm | D22: Предприятие 2 | E22: 1 квартал | F22: 2021пл/ф | J22: =SUM(K22,O22,T22:X22) -> 814 | K22: 136 | L22: =RANDBETWEEN(10,100) -> 74 | M22: 38 | N22: 24 | O22: 295 | P22: 86 | Q22: 60 | R22: 51 | S22: 98 | T22: 71 | U22: 95 | V22: 68 | W22: 70 | X22: 79 | Y22: 53 | Z22: 26
A23: 1 квартал 2020 факт | B23: 1 квартал 2021 факт | F23: 2020ф/2021ф | J23: 788 | K23: 194 | L23: 44 | M23: 71 | N23: 79 | O23: 242 | P23: 58 | Q23: 90 | R23: 31 | S23: 63 | T23: 44 | U23: 90 | V23: 66 | W23: 11 | X23: 141 | Y23: =RANDBETWEEN(10,100) -> 63 | Z23: 78
A24: 1 полугодие 2021 прогноз | B24: 1 полугодие 2021 факт | C24: Предприятие 2.xlsm | D24: Предприятие 2 | E24: 1 полугодие | F24: 2021пл/ф | J24: 696 | K24: 147 | L24: =RANDBETWEEN(10,100) -> 37 | M24: 52 | N24: 58 | O24: 244 | P24: 86 | Q24: 71 | R24: 26 | S24: 61 | T24: 52 | U24: 24 | V24: 29 | W24: 84 | X24: 116 | Y24: 57 | Z24: 59
A25: 1 полугодие 2020 факт | B25: 1 полугодие 2021 факт | F25: 2020ф/2021ф | J25: 631 | K25: 62 | L25: 27 | M25: 10 | N25: 25 | O25: 230 | P25: 80 | Q25: 64 | R25: 65 | S25: 21 | T25: 50 | U25: 32 | V25: 56 | W25: 51 | X25: 150 | Y25: 99 | Z25: 51
A26: 9 месяцев 2021 прогноз | B26: 9 месяцев 2021 факт | C26: Предприятие 2.xlsm | D26: Предприятие 2 | E26: 9 месяцев | F26: 2021пл/ф | J26: 773 | K26: 213 | L26: 68 | M26: 70 | N26: 75 | O26: 244 | P26: 76 | Q26: 87 | R26: 65 | S26: 16 | T26: 71 | U26: 11 | V26: 98 | W26: 44 | X26: 92 | Y26: 55 | Z26: 37
A27: 9 месяцев 2020 факт | B27: 9 месяцев 2021 факт | F27: 2020ф/2021ф | J27: 675 | K27: 113 | L27: 69 | M27: 22 | N27: 22 | O27: 234 | P27: 33 | Q27: 77 | R27: 63 | S27: 61 | T27: 92 | U27: 49 | V27: 29 | W27: 15 | X27: 143 | Y27: 75 | Z27: 68
A28: 2021 прогноз | B28: 2021 факт | C28: Предприятие 2.xlsm | D28: Предприятие 2 | E28: 2021 год | F28: 2021пл/ф | J28: 767 | K28: 182 | L28: 47 | M28: 89 | N28: 46 | O28: 229 | P28: 49 | Q28: 68 | R28: 32 | S28: 80 | T28: 35 | U28: 11 | V28: 79 | W28: 95 | X28: 136 | Y28: 51 | Z28: 85
A29: 2020 факт | B29: 2021 факт | F29: 2020ф/2021ф | J29: 728 | K29: 184 | L29: 90 | M29: 81 | N29: 13 | O29: 269 | P29: 100 | Q29: 44 | R29: 55 | S29: 70 | T29: 90 | U29: 43 | V29: 18 | W29: 43 | X29: 81 | Y29: 50 | Z29: 31
A30: 1 квартал 2021 факт | B30: 1 квартал 2022 прогноз | C30: Предприятие 2.xlsm | D30: Предприятие 2 | E30: 1 квартал | F30: 2021ф/2022пл | J30: 855 | K30: 210 | L30: 22 | M30: 97 | N30: 91 | O30: 180 | P30: 77 | Q30: 40 | R30: 22 | S30: 41 | T30: 86 | U30: 84 | V30: 90 | W30: 56 | X30: 149 | Y30: 76 | Z30: 73
A31: 1 полугодие 2021 факт | B31: 1 полугодие 2022 прогноз | E31: 1 полугодие | F31: 2021ф/2022пл | J31: 680 | K31: 168 | L31: 91 | M31: 21 | N31: 56 | O31: 118 | P31: 21 | Q31: 56 | R31: 31 | S31: 10 | T31: 55 | U31: 78 | V31: 72 | W31: 56 | X31: 133 | Y31: 37 | Z31: 96
A32: 9 месяцев 2021 факт | B32: 9 месяцев 2022 прогноз | C32: Предприятие 2.xlsm | D32: Предприятие 2 | E32: 9 месяцев | F32: 2021ф/2022пл | J32: 551 | K32: 164 | L32: 38 | M32: 77 | N32: 49 | O32: 191 | P32: 13 | Q32: 86 | R32: 59 | S32: 33 | T32: 12 | U32: 18 | V32: 41 | W32: 37 | X32: 88 | Y32: 15 | Z32: 73
A33: 2021 факт | B33: 2022 прогноз | E33: 2022 год | F33: 2021ф/2022пл | J33: 622 | K33: 126 | L33: 69 | M33: 13 | N33: 44 | O33: 195 | P33: 53 | Q33: 84 | R33: 27 | S33: 31 | T33: 51 | U33: 27 | V33: 30 | W33: 97 | X33: 96 | Y33: 23 | Z33: 73
A34: 1 квартал 2022 прогноз | B34: 1 квартал 2022 факт | C34: Предприятие 2.xlsm | D34: Предприятие 2 | E34: 1 квартал | F34: 2022пл/ф | J34: 776 | K34: =SUM(L34:N34) -> 217 | L34: 62 | M34: 56 | N34: 99 | O34: =SUM(P34:S34) -> 141 | P34: =RANDBETWEEN(10,100) -> 11 | Q34: 25 | R34: 84 | S34: 21 | T34: 45 | U34: 94 | V34: 56 | W34: 95 | X34: =SUM(Y34:Z34) -> 128 | Y34: 89 | Z34: 39
A35: 1 квартал 2021 факт | B35: 1 квартал 2022 факт | F35: 2021ф/2022ф | J35: 741 | K35: 158 | L35: 60 | M35: 16 | N35: 82 | O35: 234 | P35: 46 | Q35: 71 | R35: 26 | S35: 91 | T35: 31 | U35: 57 | V35: 52 | W35: 69 | X35: 140 | Y35: 81 | Z35: 59
A36: 1 полугодие 2022 прогноз | B36: 1 полугодие 2022 факт | C36: Предприятие 2.xlsm | D36: Предприятие 2 | E36: 1 полугодие | F36: 2022пл/ф | J36: 552 | K36: 152 | L36: 33 | M36: 91 | N36: 28 | O36: 166 | P36: 26 | Q36: 32 | R36: 20 | S36: 88 | T36: 24 | U36: 12 | V36: 45 | W36: 94 | X36: 59 | Y36: 15 | Z36: 44
A37: 1 полугодие 2021 факт | B37: 1 полугодие 2022 факт | F37: 2021ф/2022ф | J37: 965 | K37: 157 | L37: 25 | M37: 90 | N37: 42 | O37: 317 | P37: 74 | Q37: 91 | R37: 54 | S37: 98 | T37: 98 | U37: 87 | V37: 65 | W37: 71 | X37: 170 | Y37: 84 | Z37: 86
A38: 9 месяцев 2022 прогноз | B38: 9 месяцев 2022 факт | C38: Предприятие 2.xlsm | D38: Предприятие 2 | E38: 9 месяцев | F38: 2022пл/ф | J38: 646 | K38: 132 | L38: 54 | M38: 15 | N38: 63 | O38: 235 | P38: 74 | Q38: 72 | R38: 40 | S38: 49 | T38: 48 | U38: 55 | V38: 49 | W38: 10 | X38: 117 | Y38: 85 | Z38: 32
A39: 9 месяцев 2021 факт | B39: 9 месяцев 2022 факт | F39: 2021ф/2022ф | J39: 761 | K39: 122 | L39: 29 | M39: 43 | N39: 50 | O39: 246 | P39: 80 | Q39: 84 | R39: 38 | S39: 44 | T39: 68 | U39: 42 | V39: 64 | W39: 98 | X39: 121 | Y39: 64 | Z39: 57
A40: 2022 прогноз | B40: 2022 факт | C40: Предприятие 2.xlsm | D40: Предприятие 2 | E40: 2022 год | F40: 2022пл/ф | J40: 847 | K40: 158 | L40: 31 | M40: 73 | N40: 54 | O40: 278 | P40: 98 | Q40: 30 | R40: 90 | S40: 60 | T40: 47 | U40: 36 | V40: 100 | W40: 53 | X40: 175 | Y40: 83 | Z40: 92
A41: 2021 факт | B41: 2022 факт | F41: 2021ф/2022ф | J41: 833 | K41: 206 | L41: 84 | M41: 39 | N41: 83 | O41: 208 | P41: 29 | Q41: 77 | R41: 68 | S41: 34 | T41: 85 | U41: 36 | V41: 39 | W41: 89 | X41: 170 | Y41: 70 | Z41: 100
